bitfinex-derivatives/quotes_ETHF0:USTF0_20250102
["timestamp","ask_amount","ask_price","bid_price","bid_amount"]
[1735850428678,40.8,3456.1,3456.0,3.16362929]
[1735850428882,40.8,3456.1,3456.0,1.89651]
[1735850430379,40.8,3456.1,3456.0,0.74251]
[1735850432082,0.72407,3456.6,3456.0,0.4529]
[1735850432285,3.2078,3456.8,3456.7,0.28956]
[1735850432584,40.8,3456.8,3456.7,3.49735]
[1735850432781,41.08955,3456.8,3456.6,0.28956]
[1735850433272,41.08955,3456.8,3456.7,0.9116]
[1735850438685,40.8,3456.8,3456.3,4.3618]
[1735850438878,0.28958,3456.5,3456.4,1.17947]
[1735850439078,0.28957,3456.6,3456.5,0.28957]
[1735850439482,41.08957,3456.6,3456.5,0.28957]
[1735850440581,41.08957,3456.6,3456.4,1.17948]
[1735850441089,41.08957,3456.6,3456.5,0.28957]
[1735850441385,3.2078,3457.0,3456.9,0.28954]
[1735850441584,3.49733,3457.0,3456.9,0.28954]
[1735850441787,44.29733,3457.0,3456.8,2.56433904]
[1735850441987,44.29733,3457.0,3456.8,2.27479904]
[1735850442687,44.29733,3457.0,3456.6,0.28957]
[1735850442882,0.28954,3456.9,3456.5,2.27479904]
[1735850443580,41.08954,3457.0,3456.9,0.28954]
[1735850443783,40.8,3457.0,3456.9,0.28954]
[1735850444174,40.8,3457.0,3456.9,0.74364]
[1735850444579,44.0078,3457.0,3456.9,0.4541]
[1735850444788,44.29733,3457.0,3456.9,0.4541]
[1735850445287,44.0078,3457.0,3456.9,0.74364]
[1735850445786,40.8,3457.0,3456.9,0.74364]
[1735850446491,3.36523244,3457.5,3457.4,0.2895]
[1735850446783,3.36523244,3457.5,3457.4,4.6513]
[1735850447089,2.66083244,3457.5,3457.4,5.91812983]
[1735850447292,0.449,3458.3,3457.7,0.72368]
[1735850447484,0.73842,3458.3,3458.2,0.28943]
[1735850447685,0.449,3458.3,3458.2,0.28943]
[1735850448482,3.09753244,3458.4,3458.2,2.27479904]
[1735850448684,3.2078,3458.7,3458.2,2.69969904]
[1735850448989,3.2078,3458.7,3458.6,0.2894]
[1735850449187,3.2078,3458.7,3458.5,0.2894]
[1735850449188,3.49719,3458.7,3458.5,0.2894]
[1735850449384,3.2078,3458.7,3458.6,0.2894]
[1735850449790,3.2078,3458.7,3458.6,0.7569]
[1735850450488,0.4327,3459.1,3459.0,0.28937]
[1735850450688,3.2078,3459.3,3459.1,0.28935]
[1735850450888,3.2078,3459.3,3459.2,0.28935]
[1735850452288,3.49715,3459.3,3459.0,3.71815904]
[1735850453289,3.2078,3459.3,3459.1,0.28935]
[1735850453893,3.2078,3459.3,3459.0,3.42879904]
[1735850454102,3.49714,3459.3,3459.1,0.28935]
[1735850454296,3.2078,3459.3,3459.1,0.28935]
[1735850454995,0.28934,3459.4,3459.1,0.28935]
[1735850456390,41.08932,3459.6,3459.3,0.28934]
[1735850456598,40.8,3459.6,3459.4,0.28933]
[1735850457295,41.08932,3459.6,3459.4,0.28933]
[1735850457793,41.08932,3459.6,3459.3,3.2078]
[1735850457994,0.28933,3459.5,3459.3,3.49714]
[1735850458197,40.8,3459.6,3459.3,3.2078]
[1735850458397,0.28933,3459.4,3459.3,3.2078]
[1735850458597,3.2078,3459.5,3459.1,1.151]
[1735850458794,0.28935,3459.2,3459.1,1.151]
[1735850460094,40.8,3459.6,3459.1,1.151]
[1735850460297,0.28935,3459.2,3459.1,1.151]
[1735850460491,0.28936,3459.1,3458.9,0.4386]
[1735850460699,3.2078,3459.3,3458.6,1.6185]
[1735850460896,3.2078,3459.3,3459.0,2.27479904]
[1735850461199,3.2078,3459.3,3459.2,0.28935]
[1735850461900,0.4466,3459.5,3459.2,0.28935]
[1735850462095,0.73593,3459.5,3459.3,1.44034]
[1735850463197,0.28933,3459.4,3459.3,1.151]
[1735850465099,0.4466,3459.5,3459.0,2.27479904]
[1735850465301,0.4466,3459.5,3459.1,1.151]
[1735850465500,0.28935,3459.3,3459.1,1.151]
[1735850465802,0.28934,3459.4,3459.2,0.28934]
[1735850466002,0.28934,3459.3,3459.1,1.44035]
[1735850466398,0.4466,3459.5,3459.1,1.151]
[1735850466601,0.4466,3459.5,3459.3,0.28933]
[1735850466805,0.73593,3459.5,3459.3,0.28933]
[1735850467406,40.8,3459.9,3459.3,2.27479904]
[1735850467602,0.457,3460.0,3459.6,2.27479904]
[1735850467909,0.28929,3459.9,3459.6,2.27479904]
[1735850468104,0.457,3460.0,3459.7,0.28931]
[1735850468304,0.2893,3459.8,3459.7,0.28931]
[1735850468501,0.28931,3459.7,3459.6,2.56410904]
[1735850468705,0.457,3460.0,3459.4,0.28933]
[1735850468706,0.28933,3459.5,3459.4,0.28933]
[1735850468901,0.28932,3459.6,3459.3,0.4404]
[1735850469111,0.28933,3459.4,3459.3,1.151]
[1735850469407,0.28934,3459.3,3459.2,0.4299]
[1735850469610,0.71484,3459.3,3459.2,0.4299]
[1735850469812,0.4255,3459.3,3459.1,1.151]
[1735850470107,0.4255,3459.3,3458.8,0.4336]
[1735850470308,0.28937,3459.0,3458.9,1.151]
[1735850470502,0.28937,3458.9,3458.8,1.5846]
[1735850470902,0.28937,3459.0,3458.8,1.87398]
[1735850471120,0.28937,3459.0,3458.9,0.28937]
[1735850471410,0.28937,3459.0,3458.8,1.87398]
[1735850471608,0.28936,3459.1,3458.9,0.28937]
[1735850471813,0.28936,3459.1,3458.8,1.5846]
[1735850471814,0.4255,3459.3,3459.0,2.27479904]
[1735850472103,0.28935,3459.2,3459.1,0.28935]
[1735850472304,0.28935,3459.2,3459.0,2.56415904]
[1735850472613,0.28936,3459.1,3459.0,0.28937]
[1735850472806,0.28936,3459.1,3458.8,1.5846]
[1735850473005,0.28935,3459.2,3459.0,0.28936]
[1735850473200,0.28936,3459.1,3458.9,0.28937]
[1735850473406,0.28937,3459.0,3458.9,0.28937]
[1735850473812,0.28937,3458.9,3458.8,0.4336]
[1735850474003,0.28942,3458.4,3458.3,3.2078]
[1735850474208,0.28942,3458.4,3458.3,3.49722]
[1735850474408,0.28942,3458.4,3458.3,3.2078]
[1735850474712,0.28942,3458.3,3458.2,0.4511]
[1735850474913,0.71402,3458.3,3458.2,0.4511]
[1735850475212,0.4246,3458.3,3457.6,3.2078]
[1735850475408,0.28945,3458.1,3457.8,3.88329904]
[1735850475612,0.4246,3458.3,3457.8,3.88329904]
[1735850475806,0.28945,3458.0,3457.8,3.88329904]
[1735850476008,0.28945,3458.0,3457.8,4.17275904]
[1735850477209,0.28942,3458.4,3458.2,0.28943]
[1735850477410,0.28942,3458.4,3458.2,2.56422904]
[1735850477814,0.4624,3458.8,3458.3,0.28942]
[1735850478012,0.4624,3458.8,3458.4,0.4316]
[1735850478212,0.28941,3458.6,3458.4,0.4316]
[1735850478414,0.28939,3458.7,3458.4,0.72101]
[1735850478609,0.4624,3458.8,3458.4,0.4316]
[1735850479011,0.4624,3458.8,3458.4,0.72101]
[1735850479012,0.28939,3458.7,3458.4,0.72101]
[1735850479212,0.2894,3458.6,3458.4,0.72101]
[1735850479613,0.4624,3458.8,3458.4,0.4316]
[1735850480009,0.4244,3459.1,3458.5,5.48259904]
[1735850480211,3.2078,3459.4,3458.8,2.27479904]
[1735850480514,0.28934,3459.3,3459.1,2.56414904]
[1735850480718,0.28937,3459.0,3458.9,0.4685]
[1735850480917,0.28939,3458.8,3458.6,0.2894]
[1735850481324,0.28939,3458.8,3458.5,3.6753]
[1735850481325,5.48259904,3459.4,3458.5,3.6753]
[1735850481621,0.28936,3459.1,3458.5,3.9647]
[1735850481816,0.28939,3458.7,3458.5,3.9647]
[1735850482016,0.2894,3458.6,3458.5,0.4675]
[1735850482214,5.48259904,3458.8,3457.6,2.27479904]
[1735850482410,0.28947,3457.8,3457.7,0.4343]
[1735850482722,0.28948,3457.6,3457.5,4.51160819]
[1735850482917,0.28948,3457.7,3457.5,5.23539819]
[1735850483122,3.2078,3457.9,3457.5,5.23539819]
[1735850483123,3.2078,3457.9,3457.5,0.4343]
[1735850483325,0.28948,3457.6,3457.5,0.4343]
[1735850486918,3.2078,3457.9,3457.5,0.4343]
[1735850487118,3.2078,3457.9,3457.8,0.28947]
[1735850487319,3.49726,3457.9,3457.8,0.28947]
[1735850487522,3.2078,3457.9,3457.8,0.28947]
[1735850488315,0.28946,3457.9,3457.8,0.28947]
[1735850488525,0.28946,3457.9,3457.7,0.28947]
[1735850488927,0.28947,3457.8,3457.6,0.28948]
[1735850489128,0.28947,3457.8,3457.5,0.4343]
[1735850489327,0.28947,3457.8,3457.7,0.28947]
[1735850490230,0.28947,3457.8,3457.6,0.28948]
[1735850490722,0.8791,3458.2,3457.5,0.4343]
[1735850490723,0.28948,3457.6,3457.5,0.4343]
[1735850491927,0.28948,3457.7,3457.5,0.4343]
[1735850492130,0.28948,3457.6,3457.5,0.4343]
[1735850492630,0.28948,3457.6,3457.5,0.72379]
[1735850492833,0.28948,3457.7,3457.6,0.28948]
[1735850493333,0.28948,3457.7,3457.5,0.72378]
[1735850493534,3.2078,3457.9,3457.5,0.72378]
[1735850493535,0.28948,3457.6,3457.5,0.72378]
[1735850493725,0.28947,3457.8,3457.6,0.28948]
[1735850493926,3.2078,3457.9,3457.6,0.28948]
[1735850494230,0.72361,3458.1,3457.6,0.28948]
[1735850494231,0.28947,3457.7,3457.6,0.28948]
[1735850494431,0.72361,3458.1,3457.5,0.4343]
[1735850494620,0.28948,3457.6,3457.5,0.4343]
[1735850495927,0.28948,3457.6,3457.5,0.72379]
[1735850496231,0.28948,3457.6,3457.5,0.4343]
[1735850498034,6.20625904,3457.9,3457.2,0.4675]
[1735850498231,0.4345,3457.5,3457.1,3.6335]
[1735850498435,5.48259904,3457.9,3457.1,0.4257]
[1735850498629,0.4238,3458.2,3457.5,2.27479904]
[1735850498630,0.4603,3458.1,3457.5,2.27479904]
[1735850498835,0.4603,3458.1,3457.6,0.9306]
[1735850499035,0.28946,3457.9,3457.7,0.4604]
[1735850499238,3.2078,3458.3,3458.1,0.28943]
[1735850499431,3.49723,3458.3,3458.2,0.468]
[1735850503242,3.2078,3458.3,3458.2,0.468]
[1735850503441,3.49722,3458.3,3458.2,0.468]
[1735850506541,3.49722,3458.3,3458.2,0.75743]
[1735850506748,3.49722,3458.3,3458.2,0.468]
[1735850510139,3.49722,3458.3,3458.2,0.75743]
[1735850510545,3.49722,3458.3,3458.2,0.468]
[1735850512550,3.49722,3458.3,3458.2,0.9203]
[1735850513351,0.28942,3458.3,3458.2,1.20973]
[1735850514254,3.2078,3459.1,3458.2,5.2801]
[1735850514444,2.5341443,3459.2,3459.0,0.28936]
[1735850514642,2.5341443,3459.2,3459.1,3.92155904]
[1735850514846,2.5341443,3459.2,3459.1,3.63219904]
[1735850515048,2.5341443,3459.2,3459.1,3.92155904]
[1735850515242,0.28936,3459.2,3459.1,3.92155904]
[1735850515449,0.28936,3459.2,3459.1,0.4614]
[1735850517555,3.2078,3459.5,3459.2,0.28934]
[1735850517852,2.5341043,3459.6,3459.5,0.28932]
[1735850518551,0.28932,3459.6,3459.5,0.28932]
[1735850518857,0.28932,3459.5,3459.4,0.4417]
[1735850519047,2.2447843,3459.7,3459.3,0.73964]
[1735850519250,0.28933,3459.4,3459.3,0.73964]
[1735850519443,0.28933,3459.4,3459.3,0.4503]
[1735850519649,0.28934,3459.3,3459.2,0.28935]
[1735850520454,0.4467,3459.8,3459.1,3.17789904]
[1735850520643,2.7094843,3460.0,3459.1,3.17789904]
[1735850520644,2.5340643,3460.0,3459.5,2.27479904]
[1735850520959,2.5340743,3460.0,3459.8,3.2078]
[1735850521145,2.5340743,3460.0,3459.9,0.428]
[1735850521354,2.2447843,3460.0,3459.9,0.71729]
[1735850521650,2.2447843,3460.0,3459.9,1.18539]
[1735850522955,0.28927,3460.2,3460.0,0.28927]
[1735850523159,2.2447843,3460.6,3460.1,2.27479904]
[1735850523354,2.5340143,3460.6,3460.4,0.28924]
[1735850523548,2.5340143,3460.6,3460.5,0.4567]
[1735850523752,43.0447843,3460.6,3460.5,0.4567]
[1735850523953,43.0447843,3460.6,3460.5,0.74594]
[1735850524253,43.0447843,3460.6,3460.5,0.4567]
[1735850524458,43.3340143,3460.6,3460.5,0.4567]
[1735850524759,41.08923,3460.6,3460.5,0.4567]
[1735850525057,0.28926,3460.3,3460.2,0.4411]
[1735850525359,0.28926,3460.3,3460.2,2.0488]
[1735850529163,0.4443,3460.5,3459.9,1.6191]
[1735850529463,0.4443,3460.5,3459.8,3.2078]
[1735850529464,2.99793904,3460.4,3459.8,3.2078]
[1735850529657,0.28929,3459.9,3459.8,3.2078]
[1735850529862,3.2078,3459.9,3459.4,0.4501]
[1735850530064,2.71689904,3459.8,3459.2,0.8853]
[1735850530260,3.2078,3459.5,3459.1,4.51160819]
[1735850530465,0.28937,3458.9,3458.8,4.97370819]
[1735850530859,0.28937,3458.9,3458.8,4.51160819]
[1735850531363,2.56416904,3458.9,3458.8,4.51160819]
[1735850532057,0.28941,3458.5,3458.4,1.151]
[1735850532564,0.28943,3458.3,3458.1,1.44044]
[1735850532965,3.93129,3458.7,3458.1,1.151]
[1735850533161,0.28943,3458.2,3458.1,1.151]
[1735850533368,0.28945,3458.1,3457.9,0.4244]
[1735850533663,0.28945,3458.0,3457.9,0.4244]
[1735850533858,0.28945,3458.1,3457.9,0.4244]
[1735850534057,0.28945,3458.1,3457.9,0.71385]
[1735850534466,0.28945,3458.0,3457.9,0.4244]
[1735850534863,0.4615,3458.6,3457.9,0.4244]
[1735850535165,0.28945,3458.0,3457.9,0.4244]
[1735850536968,0.28943,3458.3,3457.9,0.71385]
[1735850537164,0.28943,3458.3,3458.1,2.27479904]
[1735850537567,0.28943,3458.3,3458.2,0.4658]
[1735850538365,0.28945,3458.0,3457.9,0.4244]
[1735850540366,3.2078,3458.1,3457.3,4.3588]
[1735850540563,0.4437,3457.9,3457.3,4.3588]
[1735850540869,0.28949,3457.5,3457.3,4.3588]
[1735850541064,0.28949,3457.5,3457.3,3.2078]
[1735850541263,0.28949,3457.5,3457.3,4.3588]
[1735850541673,0.28949,3457.5,3457.3,1.151]
[1735850542064,0.28949,3457.5,3457.2,0.906]
[1735850542269,0.28949,3457.5,3457.2,1.19551]
[1735850542572,0.28949,3457.5,3457.2,0.906]
[1735850542776,0.28949,3457.5,3457.2,1.19551]
[1735850543072,0.28949,3457.6,3457.3,0.2895]
[1735850543273,0.28949,3457.6,3457.4,2.70949904]
[1735850543476,3.2078,3458.1,3457.4,2.70949904]
[1735850543775,0.28947,3457.8,3457.5,0.28949]
[1735850544272,0.28945,3458.0,3457.7,0.28947]
[1735850544472,0.28945,3458.0,3457.5,3.2078]
[1735850544473,0.28945,3458.1,3457.8,0.72716]
[1735850544677,3.2078,3458.5,3457.9,0.4375]
[1735850545069,1.1553,3458.7,3457.9,0.4375]
[1735850545271,0.28945,3458.1,3457.9,0.4375]
[1735850545769,0.28945,3458.1,3457.9,0.72695]
[1735850545970,0.2894,3458.6,3458.4,0.28941]
[1735850546162,0.2894,3458.6,3458.3,0.28942]
[1735850546364,0.28939,3458.7,3458.4,0.4259]
[1735850546568,3.2078,3458.8,3458.4,0.8615]
[1735850546569,0.2894,3458.6,3458.4,0.8615]
[1735850547074,3.2078,3458.8,3458.4,0.8615]
[1735850547275,0.28941,3458.5,3458.4,0.8615]
[1735850548269,3.2078,3458.8,3458.4,0.8615]
[1735850548469,0.28941,3458.5,3458.4,0.8615]
[1735850548870,0.28941,3458.5,3458.4,1.15091]
[1735850549069,0.2894,3458.6,3458.5,0.2894]
[1735850549271,0.28941,3458.5,3458.4,0.8615]
[1735850550074,2.73459904,3459.2,3458.4,4.0693]
[1735850550273,0.28937,3459.0,3458.8,0.28938]
[1735850550480,3.2078,3459.3,3458.7,0.71859]
[1735850550481,0.28938,3458.9,3458.7,0.71859]
[1735850550776,3.2078,3459.3,3458.7,0.4292]
[1735850551079,0.28938,3458.8,3458.7,0.4292]
[1735850553676,0.28937,3458.9,3458.7,0.71858]
[1735850553882,0.28935,3459.2,3458.9,0.28936]
[1735850554181,0.4266,3459.4,3458.7,0.4292]
[1735850554382,0.28938,3458.8,3458.7,0.4292]
[1735850554879,0.28938,3458.9,3458.7,0.71858]
[1735850555477,2.27479904,3459.5,3458.7,0.4292]
[1735850555669,0.28935,3459.2,3459.0,0.28936]
[1735850555873,0.4397,3459.7,3459.1,0.72745]
[1735850556075,0.28934,3459.3,3459.1,0.72745]
[1735850556279,0.28934,3459.3,3459.1,0.4381]
[1735850556488,0.28933,3459.5,3459.2,0.28935]
[1735850556779,0.28934,3459.3,3459.2,0.28934]
[1735850557079,0.28934,3459.3,3459.2,0.4578]
[1735850557281,0.28934,3459.3,3459.2,0.74715]
[1735850558681,3.6475,3459.7,3459.2,3.88359904]
[1735850558872,0.28932,3459.6,3459.5,0.28932]
[1735850559075,0.28932,3459.6,3459.2,3.88359904]
[1735850559382,0.28934,3459.3,3459.2,1.151]
[1735850559682,3.49714,3459.3,3459.2,1.151]
[1735850560073,44.29714,3459.3,3459.2,1.151]
[1735850560373,0.28938,3458.8,3458.7,1.86958]
[1735850560977,3.6444,3459.2,3458.9,0.28937]
[1735850561274,0.28937,3459.0,3458.9,0.28937]
[1735850561479,3.6444,3459.2,3458.7,1.86958]
[1735850562071,3.6444,3459.2,3458.7,1.5802]
[1735850562274,0.28938,3458.9,3458.8,0.28937]
[1735850562976,0.28938,3458.8,3458.7,0.4292]
[1735850563279,5.91919904,3459.2,3458.4,2.0588]
[1735850563478,0.2894,3458.6,3458.4,2.34821]
[1735850565283,3.2078,3459.0,3458.4,2.0588]
[1735850565475,0.28937,3458.9,3458.7,0.28939]
[1735850565680,0.28937,3458.9,3458.8,0.73288]
[1735850565881,0.28937,3459.0,3458.8,0.73288]
[1735850566386,0.28937,3458.9,3458.8,0.73288]
[1735850566888,0.28937,3458.9,3458.8,0.4435]
[1735850572194,1.15999,3459.2,3458.5,0.2894]
[1735850572195,0.2894,3458.6,3458.5,0.2894]
[1735850572489,0.28939,3458.7,3458.5,0.7213]
[1735850572690,3.2078,3459.0,3458.5,0.7213]
[1735850572983,3.2078,3459.0,3458.5,0.4319]
[1735850573190,0.2894,3458.6,3458.5,0.4319]
[1735850576790,0.2894,3458.6,3458.5,0.72131]
[1735850577294,0.2894,3458.6,3458.5,0.4319]
[1735850577593,0.2894,3458.6,3458.5,0.72131]
[1735850579092,0.2894,3458.6,3458.5,0.4319]
[1735850579487,0.2894,3458.6,3458.5,0.72131]
[1735850579685,0.4366,3459.2,3458.9,0.28937]
[1735850579990,2.5341343,3459.2,3459.0,2.56415904]
[1735850580194,2.5341343,3459.2,3459.1,0.8904]
[1735850580388,2.5341343,3459.2,3459.1,1.359]
[1735850580693,2.2447843,3459.2,3459.1,1.64835]
[1735850580893,2.5341343,3459.2,3459.1,1.64835]
[1735850581502,0.28935,3459.2,3459.1,1.64835]
[1735850581795,0.28931,3459.7,3459.6,0.28931]
[1735850581994,2.2447843,3459.8,3459.5,2.27479904]
[1735850581995,0.28931,3459.6,3459.5,2.27479904]
[1735850582188,0.28931,3459.6,3459.5,2.56411904]
[1735850582390,0.28931,3459.6,3459.5,2.27479904]
[1735850582699,0.28932,3459.5,3459.4,0.28933]
[1735850583092,0.28932,3459.6,3459.5,0.28932]
[1735850583291,0.28932,3459.6,3459.5,2.56411904]
[1735850583892,40.8,3459.8,3459.5,2.27479904]
[1735850584400,40.8,3459.8,3459.7,0.2893]
[1735850585794,3.2078,3460.0,3459.2,6.78640723]
[1735850586095,0.28933,3459.4,3459.2,4.51160819]
[1735850586302,0.28933,3459.4,3459.3,0.28933]
[1735850586598,0.28934,3459.3,3459.2,5.66260819]
[1735850586801,0.28934,3459.3,3459.2,4.51160819]
[1735850586999,0.28931,3459.7,3459.3,0.28934]
[1735850587199,0.28931,3459.7,3459.2,6.78640723]
[1735850587497,0.28931,3459.7,3459.2,2.27479904]
[1735850587699,0.28932,3459.6,3459.4,0.28932]
[1735850588493,40.8,3459.9,3459.2,2.27479904]
[1735850588694,0.28933,3459.5,3459.3,0.28933]
[1735850589501,0.28934,3459.4,3459.2,7.07574723]
[1735850589808,0.28934,3459.4,3459.3,0.28934]
[1735850589999,0.28934,3459.3,3459.2,4.51160819]
[1735850594099,41.08934,3459.3,3459.2,4.51160819]
[1735850594498,41.23423993,3459.3,3458.6,0.28939]
[1735850594696,0.28939,3458.7,3458.6,0.28939]
[1735850595105,0.28939,3458.7,3458.5,5.95200819]
[1735850595404,0.2894,3458.6,3458.5,5.66260819]
[1735850597405,0.2894,3458.6,3458.5,1.151]
[1735850598800,2.26548065,3458.8,3458.7,0.28939]
[1735850599298,3.39822098,3458.9,3458.6,6.38199904]
[1735850599299,2.26548065,3458.9,3458.6,6.38199904]
[1735850599506,2.26548065,3458.9,3458.8,0.28938]
[1735850600797,0.28934,3459.3,3458.8,9.08942527]
[1735850600993,0.28934,3459.3,3458.9,0.4375]
[1735850601199,0.28936,3459.1,3458.9,0.72687]
[1735850601504,0.28936,3459.0,3458.9,0.4375]
[1735850602105,0.28937,3458.9,3458.8,9.08942527]
[1735850603003,0.4343,3459.1,3458.6,4.39659]
[1735850603004,0.4343,3459.1,3458.7,4.54527589]
[1735850603198,0.28938,3458.8,3458.7,4.83466589]
[1735850603397,0.28938,3458.8,3458.7,4.54527589]
[1735850603801,0.28938,3458.8,3458.7,4.83466589]
[1735850604108,0.28938,3458.8,3458.7,0.28939]
[1735850604494,0.4343,3459.1,3458.6,5.73406589]
[1735850604696,0.4343,3459.1,3458.6,5.44467589]
[1735850604994,0.28939,3458.7,3458.6,4.99537589]
[1735850605199,41.08939,3458.7,3458.6,4.99537589]
[1735850605404,41.08939,3458.7,3458.6,0.4501]
[1735850608605,40.8,3458.7,3458.5,5.69627589]
[1735850608802,0.2894,3458.6,3458.5,5.69627589]
[1735850609006,3.4972,3458.6,3458.5,4.54527589]
[1735850609303,0.2894,3458.5,3458.4,5.00517589]
[1735850609899,0.2894,3458.5,3458.4,4.54527589]
[1735850610407,3.2078,3458.6,3458.1,5.27690589]
[1735850610603,0.28943,3458.3,3458.1,5.27690589]
[1735850611610,0.28943,3458.3,3458.2,4.54527589]
[1735850612204,3.4972,3458.6,3458.5,0.2894]
[1735850612404,0.28942,3458.3,3458.2,4.54527589]
[1735850613502,0.28942,3458.3,3458.2,4.83470589]
[1735850614307,0.28942,3458.4,3458.2,4.83470589]
[1735850615106,0.28942,3458.3,3458.2,4.83470589]
[1735850615306,0.72349,3458.7,3458.2,4.54527589]
[1735850615509,0.28942,3458.4,3458.2,4.83469589]
[1735850616010,0.4449,3458.9,3458.2,4.54527589]
[1735850616211,0.28942,3458.3,3458.2,4.83470589]
[1735850616413,0.28942,3458.3,3458.2,4.54527589]
[1735850618619,0.4338,3458.5,3458.1,0.73164]
[1735850618917,0.28943,3458.2,3458.1,0.73164]
[1735850620112,0.28943,3458.2,3458.1,0.4422]
[1735850624918,0.28946,3457.9,3457.8,9.65253589]
[1735850625218,0.28945,3458.0,3457.9,0.28945]
[1735850625419,0.28945,3458.0,3457.9,2.27479904]
[1735850625622,0.28945,3458.0,3457.9,2.56425904]
[1735850626415,0.28945,3458.0,3457.9,2.27479904]
[1735850626621,0.28945,3458.0,3457.9,2.56425904]
[1735850627122,0.7235,3458.6,3457.9,2.56425904]
[1735850627123,4.12167098,3458.9,3457.9,2.27479904]
[1735850627315,0.28942,3458.4,3458.2,2.56421904]
[1735850627624,0.28942,3458.4,3458.3,0.4314]
[1735850627625,41.08942,3458.4,3458.3,0.4314]
[1735850627823,40.8,3458.4,3458.3,1.17152]
[1735850628023,0.2894,3458.6,3458.5,0.2894]
[1735850628524,40.8,3458.6,3458.4,0.4538]
[1735850628919,41.0894,3458.6,3458.5,0.2894]
[1735850629527,40.8,3458.6,3458.4,0.4538]
[1735850629713,0.2894,3458.5,3458.4,0.74321]
[1735850631022,0.2894,3458.5,3458.4,0.4538]
[1735850632316,40.8,3458.6,3458.2,4.54527589]
[1735850632521,0.28942,3458.3,3458.2,4.54527589]
[1735850632925,0.71452,3458.3,3458.2,4.54527589]
[1735850633622,2.98931904,3458.3,3458.2,4.54527589]
[1735850633821,43.78931904,3458.3,3458.2,4.54527589]
[1735850634021,43.49989904,3458.3,3457.7,4.54527589]
[1735850634216,0.28946,3457.8,3457.7,4.54527589]
[1735850634831,41.08946,3457.8,3457.7,4.54527589]
[1735850636124,0.28947,3457.7,3457.6,0.4319]
[1735850638133,0.28947,3457.7,3457.6,0.72138]
[1735850638433,40.8,3457.8,3457.6,2.70669904]
[1735850638729,0.28947,3457.7,3457.6,2.99616904]
[1735850638930,0.28947,3457.8,3457.7,0.28947]
[1735850639131,2.26548065,3458.1,3457.7,0.28947]
[1735850639433,0.28947,3457.7,3457.6,2.70669904]
[1735850639828,0.28947,3457.7,3457.6,2.99617904]
[1735850640127,0.28947,3457.7,3457.6,7.54145493]
[1735850640328,0.28947,3457.7,3457.6,7.25197493]
[1735850641531,0.28947,3457.7,3457.6,2.70669904]
[1735850642435,0.28947,3457.7,3457.6,2.99617904]
[1735850642626,0.72361,3458.1,3457.6,2.99617904]
[1735850642823,0.28947,3457.7,3457.6,2.99617904]
[1735850643025,0.28947,3457.7,3457.6,2.70669904]
[1735850646329,0.28947,3457.7,3457.6,7.25197493]
[1735850648134,3.2078,3458.1,3457.6,7.25197493]
[1735850648332,2.26548065,3458.2,3458.1,0.28944]
[1735850648539,2.26548065,3458.2,3458.1,1.44044]
[1735850648746,2.26548065,3458.2,3458.1,2.30204]
[1735850649237,2.26548065,3458.2,3458.1,2.0126]
[1735850649539,2.26548065,3458.2,3458.1,2.30204]
[1735850650235,3.2078,3458.6,3458.4,0.28941]
[1735850650542,2.26548065,3458.7,3458.6,0.2894]
[1735850651035,2.26548065,3458.7,3458.6,0.7471]
[1735850651540,41.08938,3458.8,3458.6,0.74709]
[1735850651738,41.08938,3458.8,3458.7,0.4393]
[1735850652947,41.08938,3458.8,3458.7,4.98459463]
[1735850653936,41.08938,3458.8,3458.7,4.54529463]
[1735850655536,41.08938,3458.8,3458.7,4.83468463]
[1735850656053,40.8,3458.8,3458.7,4.83468463]
[1735850656439,41.08938,3458.8,3458.7,4.54529463]
[1735850657239,41.08938,3458.8,3458.6,4.83468463]
[1735850657751,0.28939,3458.7,3458.6,4.83468463]
[1735850657938,41.08938,3458.8,3458.6,4.83468463]
[1735850659039,0.28939,3458.7,3458.6,4.83468463]
[1735850659237,0.28939,3458.7,3458.6,0.28939]
[1735850659940,40.8,3458.8,3458.7,0.28939]
[1735850660140,40.8,3458.8,3458.7,2.56418904]
[1735850660342,41.08938,3458.8,3458.7,2.27479904]
[1735850665142,41.08938,3458.8,3458.7,2.56418904]
[1735850665537,41.08938,3458.8,3458.7,2.27479904]
[1735850666752,0.2894,3458.6,3458.5,4.99309463]
[1735850668350,0.2894,3458.6,3458.5,0.4478]
[1735850669050,0.8758,3458.7,3458.4,4.54529463]
[1735850669249,0.2894,3458.5,3458.4,4.54529463]
[1735850670146,0.28941,3458.4,3458.3,1.151]
[1735850671446,0.2894,3458.6,3458.4,0.28941]
[1735850671646,0.28939,3458.7,3458.6,2.27479904]
[1735850672447,40.8,3458.9,3458.6,2.56419904]
[1735850672448,0.28938,3458.8,3458.6,2.56419904]
[1735850672643,0.28939,3458.7,3458.6,2.56418904]
[1735850673050,0.28939,3458.7,3458.6,2.27479904]
[1735850675156,0.28939,3458.7,3458.6,2.56419904]
[1735850675465,0.28939,3458.7,3458.6,2.27479904]
[1735850676552,0.28939,3458.7,3458.6,2.56419904]
[1735850676959,0.28939,3458.7,3458.6,2.27479904]
[1735850677154,0.28939,3458.7,3458.6,2.56419904]
[1735850677356,0.28939,3458.7,3458.6,2.27479904]
[1735850677552,0.28939,3458.7,3458.6,2.71979904]
[1735850677961,0.28939,3458.7,3458.6,0.445]
[1735850679861,79.94493223,3464.1,3458.9,0.28937]
[1735850679862,2.98882065,3459.4,3458.9,0.28937]
[1735850680168,0.28936,3459.1,3459.0,0.71906]
[1735850680466,0.28936,3459.1,3459.0,0.4297]
[1735850682667,0.28936,3459.1,3459.0,0.71906]